fUST/lending_fUST_20251205
["ID","MTS","AMOUNT","RATE_DAILY","PERIOD"]
[396251662,1764880240040,-303.59,0.00016438,2]
[396251669,1764880240096,-1023.59729684,0.00016438,2]
[396251671,1764880240107,-250.86269329,0.00016438,2]
[396251957,1764880243140,-7206.75006257,0.00016438,2]
[396251959,1764880243150,-9499.991237,0.00016438,2]
[396251961,1764880243159,-9499.991237,0.00016438,2]
[396251963,1764880243169,-7195.11881088,0.00016438,2]
[396252089,1764880246349,-305.00000001,0.00016438,2]
[396252090,1764880246360,-1434.71368843,0.00016438,2]
[396252091,1764880246372,-565.15873768,0.00016438,2]
[396252092,1764880246381,-9499.991237,0.00016438,2]
[396252093,1764880246390,-9499.991237,0.00016438,2]
[396252094,1764880246399,-9499.991237,0.00016438,2]
[396252095,1764880246407,-6589.67150707,0.00016438,2]
[396252167,1764880659511,5000.0,0.00013,2]
[396252168,1764880682299,2184.38352831,0.00013,2]
[396252169,1764880683666,-242.95199612,0.00013,2]
[396252170,1764880687574,-332.3854378,0.00013,2]
[396252171,1764880690106,199.94600448,0.00012877,2]
[396252172,1764880698030,-174.14861869,0.00013,2]
[396252173,1764880699115,332.3854378,0.00012877,2]
[396252174,1764880701132,-213.2633218,0.00013,2]
[396252175,1764880705057,-361.22261568,0.00013,2]
[396252176,1764880708829,-257.0,0.00013,2]
[396252177,1764880710469,-505.0,0.00013,2]
[396252178,1764880712111,-352.23587051,0.00013,2]
[396252179,1764880714961,-300.9408255,0.00013,2]
[396252180,1764880720797,1423.65658918,0.00012877,2]
[396252181,1764880735655,226.154663,0.00012877,2]
[396252182,1764880877591,386.96463625,0.00012877,2]
[396252185,1764881316495,3001.96,0.00012877,2]
[396252204,1764881436093,-257.0,0.00013,2]
[396252206,1764881436103,-150.0,0.00013043,2]
[396252207,1764881436112,-244.42417329,0.00013267,2]
[396252210,1764881436149,-55.57582671,0.00013267,2]
[396252212,1764881436158,-500.0,0.00013268,2]
[396252214,1764881436167,-300.60361281,0.00013268,2]
[396252216,1764881436176,-500.0,0.00013268,2]
[396252218,1764881436184,-500.0,0.00013268,2]
[396252220,1764881436195,-199.68639094,0.00013268,2]
[396252222,1764881436205,-500.0,0.00013268,2]
[396252224,1764881436215,-500.0,0.00013268,2]
[396252227,1764881436224,-500.0,0.00013268,2]
[396252231,1764881436234,-500.0,0.00013268,2]
[396252233,1764881436243,-500.0,0.00013268,2]
[396252235,1764881436252,-377.74958262,0.00013268,2]
[396252236,1764881436264,-500.0,0.00013268,2]
[396252238,1764881436274,-500.0,0.00013268,2]
[396252239,1764881436284,-500.0,0.00013268,2]
[396252240,1764881436295,-500.0,0.00013268,2]
[396252241,1764881436306,-500.0,0.00013268,2]
[396252242,1764881436316,-500.0,0.00013268,2]
[396252243,1764881436326,-440.27341716,0.00013268,2]
[396252244,1764881436336,-500.0,0.00013268,2]
[396252245,1764881436346,-500.0,0.00013268,2]
[396252246,1764881436356,-500.0,0.00013268,2]
[396252247,1764881436366,-500.0,0.00013268,2]
[396252248,1764881436376,-500.0,0.00013268,2]
[396252249,1764881436387,-500.0,0.00013268,2]
[396252250,1764881436397,-500.0,0.00013268,2]
[396252251,1764881436406,-500.0,0.00013268,2]
[396252252,1764881436415,-500.0,0.00013268,2]
[396252253,1764881436425,-500.0,0.00013268,2]
[396252254,1764881436434,-500.0,0.00013268,2]
[396252255,1764881436444,-500.0,0.00013268,2]
[396252256,1764881436453,-132.9255864,0.00013268,2]
[396252257,1764881436466,-367.0744136,0.00013268,2]
[396252258,1764881436475,-500.0,0.00013268,2]
[396252259,1764881436484,-7.7494948,0.00013268,2]
[396252260,1764881438147,-492.25050519,0.00013268,2]
[396252261,1764881438156,-1991.11723386,0.00013269,2]
[396252262,1764881438255,-41813.42544553,0.00013269,2]
[396252263,1764881438268,-1000.0,0.00013271,2]
[396252264,1764881438280,-1000.0,0.00013271,2]
[396252265,1764881438290,-500.0,0.00013273,2]
[396252266,1764881438300,-506.96891342,0.00013273,2]
[396252267,1764881438311,-500.0,0.00013273,2]
[396252268,1764881438321,-500.77535078,0.00013273,2]
[396252269,1764881438330,-452.29293279,0.00013273,2]
[396252270,1764881438339,-500.0,0.00013273,2]
[396252271,1764881438351,-500.0,0.00013273,2]
[396252272,1764881438360,-500.0,0.00013273,2]
[396252273,1764881438370,-500.0,0.00013273,2]
[396252274,1764881438379,-414.92008594,0.00013273,2]
[396252275,1764881438389,-500.0,0.00013273,2]
[396252276,1764881438399,-500.0,0.00013273,2]
[396252277,1764881438409,-500.0,0.00013273,2]
[396252278,1764881438419,-500.0,0.00013273,2]
[396252279,1764881438429,-501.11576677,0.00013273,2]
[396252280,1764881438439,-500.0,0.00013273,2]
[396252281,1764881438450,-500.0,0.00013273,2]
[396252282,1764881438460,-500.0,0.00013273,2]
[396252283,1764881438471,-500.0,0.00013273,2]
[396252284,1764881438481,-500.0,0.00013273,2]
[396252285,1764881438491,-500.0,0.00013273,2]
[396252286,1764881438502,-500.0,0.00013273,2]
[396252287,1764881438512,-300.0,0.00013535,2]
[396252288,1764881438522,-300.0,0.00013535,2]
[396252289,1764881438532,-300.0,0.00013535,2]
[396252290,1764881438542,-300.0,0.00013535,2]
[396252291,1764881438552,-300.0,0.00013535,2]
[396252292,1764881438562,-300.0,0.00013535,2]
[396252293,1764881438572,-300.0,0.00013535,2]
[396252294,1764881438582,-300.0,0.00013535,2]
[396252295,1764881438592,-300.0,0.00013535,2]
[396252296,1764881438602,-300.0,0.00013535,2]
[396252297,1764881438611,-300.0,0.00013535,2]
[396252298,1764881438621,-300.0,0.00013535,2]
[396252299,1764881438630,-300.0,0.00013535,2]
[396252300,1764881438640,-300.0,0.00013535,2]
[396252301,1764881438650,-300.0,0.00013535,2]
[396252307,1764881438931,-600.0,0.00013535,2]
[396252309,1764881438944,-2333.71842052,0.00013598,2]
[396252310,1764881438954,-300.0,0.00013673,2]
[396252311,1764881438964,-454.00027027,0.00013698,2]
[396252313,1764881438974,-500.0,0.00013698,2]
[396252315,1764881438984,-500.0,0.00013698,2]
[396252316,1764881438993,-500.0,0.00013698,2]
[396252317,1764881439003,-500.0,0.00013698,2]
[396252318,1764881439013,-500.0,0.00013698,2]
[396252319,1764881439023,-500.0,0.00013698,2]
[396252320,1764881439033,-383.51547355,0.00013698,2]
[396252321,1764881439042,-500.0,0.00013698,2]
[396252322,1764881439052,-500.0,0.00013698,2]
[396252323,1764881439062,-500.0,0.00013698,2]
[396252324,1764881439073,-500.0,0.00013698,2]
[396252325,1764881439082,-500.0,0.00013698,2]
[396252326,1764881439092,-500.0,0.00013698,2]
[396252327,1764881439102,-500.0,0.00013698,2]
[396252328,1764881439111,-500.0,0.00013698,2]
[396252329,1764881439121,-500.0,0.00013698,2]
[396252330,1764881439130,-500.0,0.00013698,2]
[396252331,1764881439140,-500.0,0.00013698,2]
[396252332,1764881439149,-500.0,0.00013698,2]
[396252333,1764881439159,-500.0,0.00013698,2]
[396252334,1764881439168,-350.0,0.00013698,2]
[396252335,1764881439178,-500.0,0.00013698,2]
[396252336,1764881439188,-500.0,0.00013698,2]
[396252337,1764881439197,-500.0,0.00013698,2]
[396252338,1764881439207,-490.01400426,0.00013698,2]
[396252339,1764881439216,-500.0,0.00013698,2]
[396252341,1764881439226,-500.0,0.00013698,2]
[396252342,1764881439235,-500.0,0.00013698,2]
[396252343,1764881439245,-500.0,0.00013698,2]
[396252345,1764881439255,-500.0,0.00013698,2]
[396252346,1764881439266,-500.0,0.00013698,2]
[396252347,1764881439279,-573.08770729,0.00013698,2]
[396252348,1764881439289,-430.328306,0.00013699,2]
[396252349,1764881439298,-501.02767932,0.00013699,2]
[396252350,1764881439309,-500.20691913,0.00013699,2]
[396252351,1764881439319,-501.26430981,0.00013699,2]
[396252352,1764881439329,-563.8822,0.00013699,2]
[396252353,1764881439338,-500.47759106,0.00013699,2]
[396252354,1764881439350,-501.80113882,0.00013699,2]
[396252355,1764881439360,-201.26880195,0.00013699,2]
[396252356,1764881439370,-500.0,0.00013699,2]
[396252357,1764881439379,-500.0,0.00013699,2]
[396252358,1764881439388,-500.0,0.00013699,2]
[396252359,1764881439398,-500.8625934,0.00013699,2]
[396252360,1764881439407,-500.0,0.00013699,2]
[396252361,1764881439417,-501.2025982,0.00013699,2]
[396252362,1764881439427,-500.15500766,0.00013699,2]
[396252363,1764881439436,-500.7326554,0.00013699,2]
[396252364,1764881439447,-430.0429745,0.00013699,2]
[396252365,1764881439457,-500.73061518,0.00013699,2]
[396252366,1764881439467,-500.0,0.00013699,2]
[396252367,1764881439477,-506.70439334,0.00013699,2]
[396252368,1764881439487,-501.29291942,0.00013699,2]
[396252369,1764881439497,-500.95040543,0.00013699,2]
[396252370,1764881439506,-286.09868494,0.00013699,2]
[396252371,1764881439516,-500.48984096,0.00013699,2]
[396252372,1764881439526,-500.31632589,0.00013699,2]
[396252373,1764881439536,-500.26398708,0.00013699,2]
[396252374,1764881439545,-500.95802127,0.00013699,2]
[396252375,1764881439555,-500.0,0.00013699,2]
[396252376,1764881439564,-500.0,0.00013699,2]
[396252377,1764881439574,-322.58219219,0.00013699,2]
[396252378,1764881439584,-500.20990572,0.00013699,2]
[396252379,1764881439593,-501.12836374,0.00013699,2]
[396252380,1764881439603,-500.30991316,0.00013699,2]
[396252381,1764881439612,-501.67196997,0.00013699,2]
[396252382,1764881439623,-500.0,0.00013699,2]
[396252383,1764881439633,-500.35160081,0.00013699,2]
[396252384,1764881439642,-500.56668089,0.00013699,2]
[396252385,1764881439652,-290.26354422,0.00013699,2]
[396252386,1764881439661,-501.84731501,0.00013699,2]
[396252387,1764881439670,-214.87284714,0.00013699,2]
[396252388,1764881439679,-501.0386268,0.00013699,2]
[396252389,1764881439689,-500.76006004,0.00013699,2]
[396252390,1764881439699,-500.34428425,0.00013699,2]
[396252391,1764881439708,-500.0,0.00013699,2]
[396252392,1764881439718,-577.57358255,0.00013699,2]
[396252393,1764881439728,-500.66533615,0.00013699,2]
[396252394,1764881439738,-500.0,0.00013699,2]
[396252395,1764881439748,-501.50911921,0.00013699,2]
[396252396,1764881439758,-500.86334196,0.00013699,2]
[396252397,1764881439767,-523.34516807,0.00013699,2]
[396252398,1764881439776,-502.21360657,0.00013699,2]
[396252399,1764881439786,-500.0,0.00013699,2]
[396252400,1764881439795,-500.0,0.00013699,2]
[396252401,1764881439805,-500.0,0.00013699,2]
[396252403,1764881439814,-500.71014863,0.00013699,2]
[396252405,1764881439823,-500.0,0.00013699,2]
[396252407,1764881439833,-500.0,0.00013699,2]
[396252408,1764881439842,-345.44622789,0.00013699,2]
[396252409,1764881439852,-500.38570021,0.00013699,2]
[396252410,1764881439862,-503.56861536,0.00013699,2]
[396252411,1764881439872,-500.0,0.00013699,2]
[396252412,1764881439881,-504.80463994,0.00013699,2]
[396252413,1764881439890,-500.0,0.00013699,2]
[396252414,1764881439900,-501.62508568,0.00013699,2]
[396252416,1764881439910,-500.74521458,0.00013699,2]
[396252417,1764881439920,-156.548569,0.00013699,2]
[396252418,1764881439930,-1629.082675,0.00013699,2]
[396252419,1764881439939,-1629.082675,0.00013699,2]
[396252420,1764881439948,-1629.082675,0.00013699,2]
[396252421,1764881439957,-1629.082675,0.00013699,2]
[396252422,1764881439966,-157.279883,0.00013699,2]
[396252423,1764881439976,-157.279883,0.00013699,2]
[396252424,1764881439985,-157.279883,0.00013699,2]
[396252425,1764881439994,-157.279883,0.00013699,2]
[396252426,1764881440004,-1000.0,0.00013699,2]
[396252427,1764881440013,-1000.0,0.00013699,2]
[396252428,1764881440023,-1629.082675,0.00013819,2]
[396252429,1764881440032,-1629.082675,0.00013819,2]
[396252430,1764881440042,-1629.082675,0.00013819,2]
[396252431,1764881440051,-1629.082675,0.00013819,2]
[396252432,1764881440060,-1000.0,0.00013821,2]
[396252433,1764881440069,-1000.0,0.00013821,2]
[396252434,1764881440078,-160.50453363,0.00013821,2]
[396252435,1764881440087,-1000.0,0.00013821,2]
[396252436,1764881440097,-963.14999191,0.00013821,2]
[396252437,1764881440106,-735.08950853,0.00013821,2]
[396252438,1764881440115,-1000.0,0.00013821,2]
[396252439,1764881440124,-1000.0,0.00013821,2]
[396252440,1764881440133,-1035.57344783,0.00013821,2]
[396252441,1764881440142,-1000.0,0.00013821,2]
[396252442,1764881440151,-1000.0,0.00013821,2]
[396252443,1764881440159,-1000.0,0.00013821,2]
[396252444,1764881440168,-1000.0,0.00013821,2]
[396252445,1764881440177,-603.28299388,0.00014221,2]
[396252446,1764881440186,-500.0,0.00014368,2]
[396252447,1764881440195,-500.0,0.00014368,2]
[396252448,1764881440203,-420.0,0.00014545,2]
[396252449,1764881440212,-720.0,0.00014888,2]
[396252450,1764881440221,-364.71500897,0.00015,2]
[396252451,1764881440230,-177.0,0.00015043,2]
[396252452,1764881440239,-2333.71842048,0.00015128,2]
[396252453,1764881440248,-348.98688014,0.00015259,2]
[396252454,1764881440257,-157.279883,0.00015457,2]
[396252455,1764881440268,-157.279883,0.00015457,2]
[396252456,1764881440279,-157.279883,0.00015457,2]
[396252457,1764881440288,-157.279883,0.00015457,2]
[396252458,1764881440296,-684.7229129,0.00015459,2]
[396252459,1764881440306,-364.71500897,0.00015694,2]
[396252460,1764881440315,-313.0,0.00015947,2]
[396252461,1764881440323,-399.12955785,0.00016016,2]
[396252462,1764881440332,-864.0,0.00016377,2]
[396252463,1764881440341,-364.71500897,0.00016388,2]
[396252464,1764881440353,-500.0,0.00016437,2]
[396252465,1764881440362,-950.2027542,0.00016438,2]
[396252466,1764881440371,-300.0,0.00016438,2]
[396252467,1764881440380,-200.0,0.00016438,2]
[396252468,1764881440389,-4302.618101,0.00016438,2]
[396252469,1764881440398,-1629.082675,0.00016438,2]
[396252470,1764881440408,-1629.082675,0.00016438,2]
[396252471,1764881440418,-1629.082675,0.00016438,2]
[396252472,1764881440427,-1629.082675,0.00016438,2]
[396252473,1764881440438,-1629.082675,0.00016438,2]
[396252474,1764881440447,-1629.082675,0.00016438,2]
[396252475,1764881440456,-1629.082675,0.00016438,2]
[396252476,1764881440466,-1629.082675,0.00016438,2]
[396252477,1764881440476,-1629.082675,0.00016438,2]
[396252478,1764881440486,-1629.082675,0.00016438,2]
[396252479,1764881440496,-1629.082675,0.00016438,2]
[396252480,1764881440506,-1629.082673,0.00016438,2]
[396252481,1764881440516,-157.279883,0.00016438,2]
[396252482,1764881440526,-157.279883,0.00016438,2]
[396252483,1764881440535,-157.279883,0.00016438,2]
[396252484,1764881440545,-157.279883,0.00016438,2]
[396252485,1764881440554,-157.279883,0.00016438,2]
[396252486,1764881440564,-157.279883,0.00016438,2]
[396252487,1764881440574,-157.279883,0.00016438,2]
[396252488,1764881440583,-157.279883,0.00016438,2]
[396252489,1764881440592,-157.279883,0.00016438,2]
[396252490,1764881440601,-157.279883,0.00016438,2]
[396252491,1764881440611,-157.279883,0.00016438,2]
[396252492,1764881440620,-157.279877,0.00016438,2]
[396252493,1764881440629,-300.0,0.00016438,2]
[396252494,1764881440638,-200.0,0.00016438,2]
[396252495,1764881440647,-500.0,0.00016438,2]
[396252496,1764881440656,-611.58,0.00016438,2]
[396252497,1764881440666,-152.36165063,0.00016438,2]
[396252498,1764881440675,-153.078973,0.00016438,2]
[396252499,1764881440685,-168.703231,0.00016438,2]
[396252500,1764881440694,-168.703231,0.00016438,2]
[396252501,1764881440703,-168.703231,0.00016438,2]
[396252502,1764881440712,-168.703231,0.00016438,2]
[396252503,1764881440722,-168.703231,0.00016438,2]
[396252504,1764881440732,-168.703231,0.00016438,2]
[396252505,1764881440741,-168.703231,0.00016438,2]
[396252506,1764881440751,-168.703231,0.00016438,2]
[396252507,1764881440760,-168.703231,0.00016438,2]
[396252508,1764881440769,-168.703231,0.00016438,2]
[396252509,1764881440778,-168.703231,0.00016438,2]
[396252510,1764881440787,-168.703231,0.00016438,2]
[396252511,1764881440796,-151.0,0.00016438,2]
[396252512,1764881440805,-151.0,0.00016438,2]
[396252513,1764881440814,-151.0,0.00016438,2]
[396252514,1764881440824,-151.0,0.00016438,2]
[396252515,1764881440834,-151.0,0.00016438,2]
[396252516,1764881440844,-151.0,0.00016438,2]
[396252517,1764881440854,-151.0,0.00016438,2]
[396252518,1764881440863,-276.541224,0.00016438,2]
[396252519,1764881440872,-276.541224,0.00016438,2]
[396252520,1764881440881,-276.541224,0.00016438,2]
[396252521,1764881440891,-276.541224,0.00016438,2]
[396252522,1764881440900,-276.541224,0.00016438,2]
[396252523,1764881440908,-276.541224,0.00016438,2]
[396252524,1764881440917,-276.541224,0.00016438,2]
[396252525,1764881440926,-276.541224,0.00016438,2]
[396252526,1764881440936,-276.541224,0.00016438,2]
[396252527,1764881440946,-276.541224,0.00016438,2]
[396252528,1764881440955,-276.541224,0.00016438,2]
[396252529,1764881440965,-276.541224,0.00016438,2]
[396252530,1764881440975,-276.541224,0.00016438,2]
[396252531,1764881440984,-276.541224,0.00016438,2]
[396252532,1764881440993,-276.541224,0.00016438,2]
[396252533,1764881441002,-276.541224,0.00016438,2]
[396252534,1764881441012,-276.541224,0.00016438,2]
[396252535,1764881441021,-276.541224,0.00016438,2]
[396252536,1764881441029,-276.541224,0.00016438,2]
[396252537,1764881441039,-276.541214,0.00016438,2]
[396252538,1764881441048,-368.409851,0.00016438,2]
[396252539,1764881441057,-368.409851,0.00016438,2]
[396252540,1764881441066,-368.409851,0.00016438,2]
[396252541,1764881441075,-368.409851,0.00016438,2]
[396252543,1764881441085,-368.409851,0.00016438,2]
[396252545,1764881441095,-368.409851,0.00016438,2]
[396252547,1764881441104,-368.409851,0.00016438,2]
[396252548,1764881441114,-368.409851,0.00016438,2]
[396252549,1764881441124,-368.409851,0.00016438,2]
[396252550,1764881441134,-368.409851,0.00016438,2]
[396252551,1764881441143,-368.409851,0.00016438,2]
[396252552,1764881441153,-368.409851,0.00016438,2]
[396252554,1764881441162,-368.409851,0.00016438,2]
[396252556,1764881441171,-368.409851,0.00016438,2]
[396252557,1764881441180,-368.409851,0.00016438,2]
[396252560,1764881441190,-368.409851,0.00016438,2]
[396252562,1764881441200,-368.409851,0.00016438,2]
[396252564,1764881441209,-368.409851,0.00016438,2]
[396252566,1764881441219,-368.409851,0.00016438,2]
[396252568,1764881441230,-368.40984848,0.00016438,2]
[396252570,1764881441240,-288.694982,0.00016438,2]
[396252572,1764881441249,-288.694982,0.00016438,2]
[396252574,1764881441259,-288.694982,0.00016438,2]
[396252576,1764881441272,-288.694982,0.00016438,2]
[396252578,1764881441282,-288.694982,0.00016438,2]
[396252580,1764881441291,-288.694982,0.00016438,2]
[396252582,1764881441301,-288.694982,0.00016438,2]
[396252584,1764881441310,-288.694982,0.00016438,2]
[396252586,1764881441319,-288.694982,0.00016438,2]
[396252588,1764881441328,-288.694982,0.00016438,2]
[396252590,1764881441337,-288.694982,0.00016438,2]
[396252592,1764881441349,-288.694982,0.00016438,2]
[396252594,1764881441359,-288.694982,0.00016438,2]
[396252596,1764881441368,-288.694982,0.00016438,2]
[396252598,1764881441378,-288.694982,0.00016438,2]
[396252600,1764881441387,-288.694982,0.00016438,2]
[396252602,1764881441396,-288.694982,0.00016438,2]
[396252604,1764881441407,-288.694982,0.00016438,2]
[396252606,1764881441417,-288.694982,0.00016438,2]
[396252608,1764881441427,-288.69499,0.00016438,2]
[396252610,1764881441436,-151.0,0.00016438,2]
[396252612,1764881441446,-151.0,0.00016438,2]
[396252614,1764881441455,-151.0,0.00016438,2]
[396252616,1764881441464,-151.0,0.00016438,2]
[396252618,1764881441475,-151.0,0.00016438,2]
[396252620,1764881441485,-151.0,0.00016438,2]
[396252622,1764881441494,-151.0,0.00016438,2]
[396252624,1764881441503,-151.0,0.00016438,2]
[396252626,1764881441512,-151.0,0.00016438,2]
[396252628,1764881441522,-151.0,0.00016438,2]
[396252630,1764881441531,-151.0,0.00016438,2]
[396252632,1764881441541,-228.804703,0.00016438,2]
[396252634,1764881441550,-5845.510729,0.00016438,2]
[396252636,1764881441560,-5845.510729,0.00016438,2]
[396252638,1764881441569,-5845.510729,0.00016438,2]
[396252640,1764881441578,-5845.510729,0.00016438,2]
[396252642,1764881441587,-5845.510729,0.00016438,2]
[396252644,1764881441597,-151.0,0.00016438,2]
[396252646,1764881441606,-151.0,0.00016438,2]
[396252648,1764881441615,-5845.510729,0.00016438,2]
[396252650,1764881441624,-5845.510729,0.00016438,2]
[396252652,1764881441633,-151.0,0.00016438,2]
[396252654,1764881441643,-5845.510729,0.00016438,2]
[396252656,1764881441652,-5845.510729,0.00016438,2]
[396252658,1764881441662,-153.641429,0.00016438,2]
[396252660,1764881441671,-5845.510729,0.00016438,2]
[396252662,1764881441680,-5845.510729,0.00016438,2]
[396252664,1764881441689,-5845.510729,0.00016438,2]
[396252666,1764881441699,-5845.510729,0.00016438,2]
[396252668,1764881441709,-5845.510729,0.00016438,2]
[396252670,1764881441718,-5845.510729,0.00016438,2]
[396252672,1764881441731,-5845.510729,0.00016438,2]
[396252674,1764881441740,-5845.510729,0.00016438,2]
[396252676,1764881441750,-5845.510729,0.00016438,2]
[396252678,1764881441759,-5845.510729,0.00016438,2]
[396252680,1764881441769,-5845.510721,0.00016438,2]
[396252682,1764881441778,-151.0,0.00016438,2]
[396252684,1764881441788,-151.0,0.00016438,2]
[396252686,1764881441796,-151.0,0.00016438,2]
[396252688,1764881441806,-151.0,0.00016438,2]
[396252689,1764881441815,-151.0,0.00016438,2]
[396252690,1764881441824,-151.0,0.00016438,2]
[396252691,1764881441834,-2333.71842048,0.00016657,2]
[396252692,1764881441843,-348.98688014,0.00017017,2]
[396252693,1764881441853,-204.0,0.00017043,2]
[396252694,1764881441862,-364.71500897,0.00017082,2]
[396252695,1764881441872,-250.47491409,0.00017177,2]
[396252696,1764881441882,-151.0,0.00017518,2]
[396252697,1764881441892,-265.485462,0.00017518,2]
[396252698,1764881441901,-716.28483028,0.00017636,2]
[396252699,1764881441910,-1289.3126945,0.00017636,2]
[396252700,1764881441920,-2292.11145688,0.00017636,2]
[396252701,1764881441930,-3581.42415138,0.00017636,2]
[396252702,1764881441939,-365.07972398,0.00017776,2]
[396252703,1764881441950,-734.71184784,0.00017882,2]
[396252704,1764881441959,-66719.67199843,0.0001799,2]
[396252705,1764881441969,-1000.0,0.00018015,2]
[396252706,1764881441979,-2333.71842048,0.00018187,2]
[396252707,1764881441988,-960.0438659,0.00018525,2]
[396252708,1764881441998,-168.703231,0.00018564,2]
[396252709,1764881442007,-168.703231,0.00018564,2]
[396252710,1764881442016,-168.703231,0.00018564,2]
[396252711,1764881442025,-168.703231,0.00018564,2]
[396252712,1764881442035,-151.0,0.00018564,2]
[396252714,1764881442044,-189.23176583,0.00018564,2]
[396252716,1764881442053,-917.33926004,0.00018578,2]
[396252717,1764881442063,-613.27009882,0.00018578,2]
[396252719,1764881442072,-348.98688014,0.00018776,2]
[396252722,1764881442082,-3406.31239373,0.00018823,2]
[396252724,1764881442091,-2528.22076675,0.00018891,2]
[396252725,1764881442100,-168.0,0.00018911,2]
[396252728,1764881442110,-214.2147415,0.00018991,2]
[396252730,1764881442119,-231.0,0.00019043,2]
[396252731,1764881442128,-756.92706331,0.00019103,2]
[396252734,1764881442138,-1703.08589244,0.00019103,2]
[396252736,1764881442148,-3027.70825323,0.00019103,2]
[396252737,1764881442157,-393.28886992,0.00019103,2]
[396252740,1764881442166,-168.0,0.00019186,2]
[396252741,1764881442175,-1240.3,0.000192,2]
[396252743,1764881442185,-168.0,0.00019236,2]
[396252745,1764881442194,-1333.75,0.000193,2]
[396252747,1764881442203,-693.67,0.000193,2]
[396252749,1764881442213,-414.0,0.00019302,2]
[396252751,1764881442222,-168.0,0.00019331,2]
[396252753,1764881442231,-168.0,0.00019477,2]
[396252755,1764881442240,-151.0,0.0001954,2]
[396252756,1764881442250,-168.703231,0.00019541,2]
[396252758,1764881442259,-168.703231,0.00019541,2]
[396252760,1764881442270,-168.703231,0.00019541,2]
[396252762,1764881442280,-168.703226,0.00019541,2]
[396252764,1764881442289,-2333.71842048,0.00019716,2]
[396252766,1764881442298,-738.277,0.00019726,2]
[396252768,1764881442308,-600.0,0.00019726,2]
[396252770,1764881442318,-600.0,0.00019726,2]
[396252772,1764881442327,-208.46073124,0.00019726,2]
[396252774,1764881442336,-4499.48457638,0.00019814,2]
[396252776,1764881442345,-170.04203667,0.00019814,2]
[396252778,1764881442356,-1000.0,0.00019816,10]
[396252780,1764881442366,-244.0,0.00019816,10]
[396252782,1764881442375,-151.0,0.00019816,2]
[396252784,1764881442384,-600.0,0.00019869,7]
[396252786,1764881442394,-273.63785911,0.0002,14]
[396252788,1764881442404,-300.0,0.0002,2]
[396252790,1764881442413,-552.91055204,0.00020065,2]
[396252792,1764881442423,-995.23899367,0.00020065,2]
[396252794,1764881442431,-1769.31376653,0.00020065,2]
[396252796,1764881442441,-430.328306,0.00020187,2]
[396252798,1764881442451,-500.0,0.00020248,2]
[396252800,1764881442460,-500.0,0.00020248,2]
[396252802,1764881442470,-500.0,0.0002051,10]
[396252804,1764881442480,-500.0,0.0002051,2]
[396252806,1764881442490,-501.31658997,0.0002051,10]
[396252808,1764881442499,-500.0,0.0002051,2]
[396252810,1764881442509,-348.98688014,0.00020534,2]
[396252812,1764881442518,-168.0,0.00020778,2]
[396252814,1764881442527,-1416.41698717,0.00020857,5]
[396252816,1764881442536,-2000.0,0.00020957,7]
[396252817,1764881442546,-600.0,0.00020965,7]
[396252819,1764881442556,-1240.3,0.00021,2]
[396252821,1764881442565,-258.0,0.00021043,2]
[396252823,1764881442574,-179.17001105,0.000211,2]
[396252825,1764881442583,-158.34642947,0.000211,2]
[396252827,1764881442594,-154.39147907,0.000211,2]
[396252829,1764881442603,-150.0,0.000211,2]
[396252831,1764881442612,-38000.0,0.00021132,3]
[396252833,1764881442621,-399.12955785,0.00021132,3]
[396252835,1764881442631,-38000.0,0.00021141,3]